fUST/lending_fUST_20250627
["ID","MTS","AMOUNT","RATE_DAILY","PERIOD"]
[368058037,1751011845289,-2771.44,0.0002,2]
[368058038,1751011845298,-460.0,0.0002,2]
[368058039,1751011845307,-460.0,0.0002,2]
[368058040,1751011845318,-460.0,0.0002,2]
[368058041,1751011845327,-706.35,0.0002,2]
[368058042,1751011845336,-2317.21,0.0002,2]
[368058043,1751011845345,-1188.88,0.0002,2]
[368058045,1751011845354,-592.21,0.0002,2]
[368058047,1751011845364,-460.0,0.0002,2]
[368058049,1751011845373,-460.0,0.0002,2]
[368058051,1751011845382,-460.0,0.0002,2]
[368058053,1751011845394,-736.81,0.0002,2]
[368058055,1751011845404,-460.0,0.0002,2]
[368058057,1751011845413,-460.0,0.0002,2]
[368058059,1751011845423,-460.0,0.0002,2]
[368058061,1751011845432,-467.38,0.0002,2]
[368058063,1751011845442,-460.0,0.0002,2]
[368058065,1751011845451,-460.0,0.0002,2]
[368058067,1751011845460,-1365.55,0.0002,2]
[368058068,1751011845469,-460.0,0.0002,2]
[368058069,1751011845479,-676.57,0.0002,2]
[368058070,1751011845488,-4598.21,0.0002,2]
[368058071,1751011845497,-172.0,0.0002014,2]
[368058072,1751011845507,-235.69525341,0.00020229,2]
[368058073,1751011845516,-500.0,0.00020229,2]
[368058074,1751011845525,-1000.0,0.00020229,2]
[368058075,1751011845535,-500.55681391,0.00020244,2]
[368058076,1751011845545,-1000.0,0.00020244,2]
[368058077,1751011845555,-1000.0,0.00020244,2]
[368058078,1751011845565,-160.0,0.00020273,2]
[368058080,1751011845574,-197.80271926,0.00020273,2]
[368058081,1751011845583,-189.8491,0.00020273,2]
[368058082,1751011845593,-460.0,0.00020273,2]
[368058083,1751011845601,-460.0,0.00020273,2]
[368058084,1751011845611,-460.0,0.00020273,2]
[368058085,1751011845620,-500.39886976,0.00020273,2]
[368058086,1751011845630,-460.0,0.00020273,2]
[368058087,1751011845639,-479.26,0.00020273,2]
[368058088,1751011845648,-460.0,0.00020273,2]
[368058089,1751011845659,-460.0,0.00020273,2]
[368058090,1751011845668,-460.0,0.00020273,2]
[368058091,1751011845677,-460.0,0.00020273,2]
[368058092,1751011845686,-599.06,0.00020273,2]
[368058093,1751011845696,-460.0,0.00020273,2]
[368058094,1751011845705,-460.0,0.00020273,2]
[368058095,1751011845714,-556.52902155,0.00020273,2]
[368058096,1751011845723,-460.0,0.00020273,2]
[368058097,1751011845732,-723.17,0.00020273,2]
[368058098,1751011845746,-425.171196,0.00020273,2]
[368058099,1751011845755,-460.0,0.00020273,2]
[368058100,1751011845765,-298.61267054,0.00020273,2]
[368058101,1751011845774,-568.43,0.00020273,2]
[368058102,1751011845785,-460.0,0.00020273,2]
[368058103,1751011845794,-460.0,0.00020273,2]
[368058104,1751011845804,-460.0,0.00020273,2]
[368058105,1751011845814,-460.0,0.00020273,2]
[368058106,1751011845823,-575.3,0.00020273,2]
[368058107,1751011845832,-460.0,0.00020273,2]
[368058108,1751011845841,-460.0,0.00020273,2]
[368058109,1751011845851,-1144.03,0.00020273,2]
[368058110,1751011845860,-532.29,0.00020273,2]
[368058111,1751011845870,-460.0,0.00020273,2]
[368058112,1751011845880,-2258.25,0.00020273,2]
[368058113,1751011845890,-460.0,0.00020273,2]
[368058114,1751011845900,-460.0,0.00020273,2]
[368058115,1751011845910,-460.0,0.00020273,2]
[368058116,1751011845919,-3678.83,0.00020273,2]
[368058117,1751011845929,-1363.59,0.00020273,2]
[368058118,1751011845938,-460.0,0.00020273,2]
[368058119,1751011845947,-460.0,0.00020273,2]
[368058120,1751011845956,-748.42,0.00020273,2]
[368058121,1751011845965,-2113.23,0.00020273,2]
[368058122,1751011845974,-460.0,0.00020273,2]
[368058123,1751011845983,-460.0,0.00020273,2]
[368058124,1751011845993,-460.0,0.00020273,2]
[368058125,1751011846002,-492.58,0.00020273,2]
[368058126,1751011846012,-569.23,0.00020273,2]
[368058127,1751011846021,-551.78,0.00020273,2]
[368058128,1751011846031,-460.0,0.00020273,2]
[368058129,1751011846040,-1501.13,0.00020273,2]
[368058130,1751011846049,-492.21,0.00020273,2]
[368058131,1751011846059,-460.0,0.00020273,2]
[368058133,1751011846069,-869.54,0.00020273,2]
[368058134,1751011846078,-460.0,0.00020273,2]
[368058135,1751011846087,-460.0,0.00020273,2]
[368058136,1751011846097,-460.0,0.00020273,2]
[368058137,1751011846107,-1727.92,0.00020273,2]
[368058138,1751011846116,-460.0,0.00020273,2]
[368058139,1751011846126,-627.66,0.00020273,2]
[368058140,1751011846135,-460.0,0.00020273,2]
[368058141,1751011846144,-3381.67,0.00020273,2]
[368058142,1751011846153,-3755.67,0.00020273,2]
[368058143,1751011846163,-460.0,0.00020273,2]
[368058144,1751011846173,-460.0,0.00020273,2]
[368058145,1751011846182,-953.84,0.00020273,2]
[368058146,1751011846191,-2771.44,0.00020273,2]
[368058147,1751011846200,-460.0,0.00020273,2]
[368058148,1751011846209,-460.0,0.00020273,2]
[368058149,1751011846218,-460.0,0.00020273,2]
[368058150,1751011846227,-706.35,0.00020273,2]
[368058151,1751011846237,-2317.21,0.00020273,2]
[368058152,1751011846246,-1188.88,0.00020273,2]
[368058153,1751011846256,-205.38,0.00020273,2]
[368058154,1751011846266,-736.81,0.00020273,2]
[368058155,1751011846276,-460.0,0.00020273,2]
[368058156,1751011846286,-460.0,0.00020273,2]
[368058157,1751011846296,-460.0,0.00020273,2]
[368058158,1751011846306,-460.0,0.00020273,2]
[368058159,1751011846316,-467.38,0.00020273,2]
[368058160,1751011846325,-460.0,0.00020273,2]
[368058161,1751011846334,-460.0,0.00020273,2]
[368058162,1751011846343,-1365.55,0.00020273,2]
[368058163,1751011846352,-460.0,0.00020273,2]
[368058164,1751011846365,-676.57,0.00020273,2]
[368058165,1751011846374,-4598.21,0.00020273,2]
[368058166,1751011846384,-847.04181546,0.00020274,2]
[368058167,1751011846393,-230.26210603,0.00020274,2]
[368058168,1751011846402,-160.0,0.00020274,2]
[368058169,1751011846411,-12562.41216491,0.00020274,2]
[368058170,1751011846420,-213.75309343,0.00020274,2]
[368058171,1751011846430,-160.0,0.00020274,2]
[368058172,1751011846439,-214.91804724,0.00020274,2]
[368058173,1751011846449,-836.98798914,0.00020274,2]
[368058174,1751011846458,-731.67122238,0.00020322,2]
[368058175,1751011846468,-99088.16894943,0.000205,2]
[368058176,1751011846477,-544.4168052,0.00020514,2]
[368058177,1751011846487,-460.0,0.00020547,2]
[368058178,1751011846496,-223.9003636,0.00020547,2]
[368058179,1751011846506,-460.0,0.00020547,2]
[368058180,1751011846516,-491.05041718,0.00020547,2]
[368058181,1751011846525,-479.26,0.00020547,2]
[368058182,1751011846535,-460.0,0.00020547,2]
[368058183,1751011846544,-183.40520964,0.00020547,2]
[368058184,1751011846555,-460.0,0.00020547,2]
[368058185,1751011846565,-460.0,0.00020547,2]
[368058186,1751011846575,-599.06,0.00020547,2]
[368058187,1751011846584,-460.0,0.00020547,2]
[368058188,1751011846593,-237.91254035,0.00020547,2]
[368058189,1751011846602,-723.17,0.00020547,2]
[368058190,1751011846612,-460.0,0.00020547,2]
[368058191,1751011846622,-460.0,0.00020547,2]
[368058192,1751011846633,-460.0,0.00020547,2]
[368058193,1751011846642,-460.0,0.00020547,2]
[368058194,1751011846652,-460.0,0.00020547,2]
[368058195,1751011846662,-575.3,0.00020547,2]
[368058196,1751011846671,-460.0,0.00020547,2]
[368058197,1751011846680,-460.0,0.00020547,2]
[368058198,1751011846689,-1144.03,0.00020547,2]
[368058199,1751011846698,-532.29,0.00020547,2]
[368058200,1751011846707,-460.0,0.00020547,2]
[368058201,1751011846717,-2258.25,0.00020547,2]
[368058202,1751011846727,-460.0,0.00020547,2]
[368058203,1751011846739,-460.0,0.00020547,2]
[368058204,1751011846750,-460.0,0.00020547,2]
[368058205,1751011846759,-3678.83,0.00020547,2]
[368058206,1751011846768,-1363.59,0.00020547,2]
[368058207,1751011846777,-460.0,0.00020547,2]
[368058208,1751011846787,-460.0,0.00020547,2]
[368058209,1751011846796,-748.42,0.00020547,2]
[368058210,1751011846805,-2113.23,0.00020547,2]
[368058211,1751011846816,-460.0,0.00020547,2]
[368058212,1751011846825,-460.0,0.00020547,2]
[368058213,1751011846834,-492.58,0.00020547,2]
[368058214,1751011846844,-551.78,0.00020547,2]
[368058215,1751011846853,-460.0,0.00020547,2]
[368058216,1751011846863,-1501.13,0.00020547,2]
[368058217,1751011846872,-492.21,0.00020547,2]
[368058218,1751011846882,-460.0,0.00020547,2]
[368058219,1751011846892,-869.54,0.00020547,2]
[368058220,1751011846902,-460.0,0.00020547,2]
[368058221,1751011846911,-460.0,0.00020547,2]
[368058222,1751011846921,-460.0,0.00020547,2]
[368058223,1751011846930,-1727.92,0.00020547,2]
[368058224,1751011846941,-460.0,0.00020547,2]
[368058225,1751011846950,-627.66,0.00020547,2]
[368058226,1751011846960,-476.64,0.00020547,2]
[368058227,1751011846969,-3381.67,0.00020547,2]
[368058228,1751011846979,-3755.67,0.00020547,2]
[368058229,1751011846988,-460.0,0.00020547,2]
[368058230,1751011846997,-460.0,0.00020547,2]
[368058231,1751011847008,-953.84,0.00020547,2]
[368058232,1751011847017,-2771.44,0.00020547,2]
[368058233,1751011847026,-460.0,0.00020547,2]
[368058234,1751011847035,-460.0,0.00020547,2]
[368058235,1751011847045,-460.0,0.00020547,2]
[368058236,1751011847054,-706.35,0.00020547,2]
[368058237,1751011847063,-2317.21,0.00020547,2]
[368058238,1751011847073,-1188.88,0.00020547,2]
[368058239,1751011847082,-736.81,0.00020547,2]
[368058240,1751011847091,-460.0,0.00020547,2]
[368058241,1751011847100,-460.0,0.00020547,2]
[368058242,1751011847110,-460.0,0.00020547,2]
[368058243,1751011847119,-460.0,0.00020547,2]
[368058244,1751011847128,-467.38,0.00020547,2]
[368058245,1751011847138,-460.0,0.00020547,2]
[368058246,1751011847147,-460.0,0.00020547,2]
[368058247,1751011847156,-1365.55,0.00020547,2]
[368058248,1751011847166,-438.56714566,0.00020547,2]
[368058249,1751011847175,-676.57,0.00020547,2]
[368058250,1751011847185,-4598.21,0.00020547,2]
[368058251,1751011847195,-1910.25992877,0.00020576,2]
[368058252,1751011847204,-4196.1,0.000206,2]
[368058253,1751011847213,-1038.20490587,0.00020613,2]
[368058254,1751011847222,-172.0,0.00020698,2]
[368058255,1751011847232,-172.0,0.00020704,2]
[368058256,1751011847241,-1500.0,0.00020777,2]
[368058257,1751011847250,-1000.0,0.00020792,2]
[368058258,1751011847260,-460.0,0.00020821,2]
[368058259,1751011847269,-460.0,0.00020821,2]
[368058260,1751011847278,-479.26,0.00020821,2]
[368058261,1751011847287,-460.0,0.00020821,2]
[368058262,1751011847297,-460.0,0.00020821,2]
[368058263,1751011847306,-460.0,0.00020821,2]
[368058264,1751011847315,-599.06,0.00020821,2]
[368058265,1751011847324,-460.0,0.00020821,2]
[368058266,1751011847333,-723.17,0.00020821,2]
[368058267,1751011847343,-460.0,0.00020821,2]
[368058268,1751011847353,-460.0,0.00020821,2]
[368058269,1751011847362,-458.42417325,0.00020821,2]
[368058270,1751011847371,-246.14932496,0.00020821,2]
[368058271,1751011847380,-460.0,0.00020821,2]
[368058272,1751011847390,-575.3,0.00020821,2]
[368058273,1751011847399,-460.0,0.00020821,2]
[368058274,1751011847408,-460.0,0.00020821,2]
[368058275,1751011847417,-1144.03,0.00020821,2]
[368058276,1751011847426,-532.29,0.00020821,2]
[368058277,1751011847435,-460.0,0.00020821,2]
[368058278,1751011847445,-2258.25,0.00020821,2]
[368058279,1751011847455,-460.0,0.00020821,2]
[368058280,1751011847464,-460.0,0.00020821,2]
[368058281,1751011847475,-460.0,0.00020821,2]
[368058282,1751011847485,-3678.83,0.00020821,2]
[368058283,1751011847494,-1363.59,0.00020821,2]
[368058284,1751011847503,-460.0,0.00020821,2]
[368058285,1751011847513,-460.0,0.00020821,2]
[368058286,1751011847522,-748.42,0.00020821,2]
[368058287,1751011847531,-2113.23,0.00020821,2]
[368058288,1751011847540,-460.0,0.00020821,2]
[368058289,1751011847549,-492.58,0.00020821,2]
[368058290,1751011847559,-551.78,0.00020821,2]
[368058291,1751011847568,-460.0,0.00020821,2]
[368058292,1751011847577,-1501.13,0.00020821,2]
[368058293,1751011847587,-492.21,0.00020821,2]
[368058294,1751011847596,-460.0,0.00020821,2]
[368058295,1751011847606,-869.54,0.00020821,2]
[368058296,1751011847615,-460.0,0.00020821,2]
[368058297,1751011847624,-460.0,0.00020821,2]
[368058298,1751011847633,-460.0,0.00020821,2]
[368058299,1751011847643,-1727.92,0.00020821,2]
[368058300,1751011847651,-460.0,0.00020821,2]
[368058301,1751011847661,-627.66,0.00020821,2]
[368058302,1751011847670,-3381.67,0.00020821,2]
[368058303,1751011847680,-3755.67,0.00020821,2]
[368058304,1751011847689,-460.0,0.00020821,2]
[368058305,1751011847698,-460.0,0.00020821,2]
[368058306,1751011847707,-953.84,0.00020821,2]
[368058307,1751011847717,-2771.44,0.00020821,2]
[368058308,1751011847726,-460.0,0.00020821,2]
[368058309,1751011847736,-460.0,0.00020821,2]
[368058310,1751011847750,-460.0,0.00020821,2]
[368058311,1751011847761,-706.35,0.00020821,2]
[368058312,1751011847771,-2317.21,0.00020821,2]
[368058313,1751011847780,-1188.88,0.00020821,2]
[368058314,1751011847791,-736.81,0.00020821,2]
[368058315,1751011847800,-460.0,0.00020821,2]
[368058316,1751011847810,-460.0,0.00020821,2]
[368058317,1751011847820,-460.0,0.00020821,2]
[368058318,1751011847829,-460.0,0.00020821,2]
[368058319,1751011847839,-467.38,0.00020821,2]
[368058320,1751011847848,-460.0,0.00020821,2]
[368058321,1751011847858,-334.45256585,0.00020821,2]
[368058322,1751011847867,-1365.55,0.00020821,2]
[368058323,1751011847877,-676.57,0.00020821,2]
[368058324,1751011847886,-4598.21,0.00020821,2]
[368058325,1751011847896,-207.4,0.00020882,2]
[368058326,1751011847906,-5000.0,0.00020882,2]
[368058327,1751011848023,-500.0,0.00020882,2]
[368058328,1751011848033,-500.0,0.00020882,2]
[368058329,1751011848043,-500.0,0.00020882,2]
[368058330,1751011848052,-500.0,0.00020882,2]
[368058331,1751011848062,-1093.47944125,0.00020882,2]
[368058332,1751011848072,-500.0,0.00020882,2]
[368058333,1751011848082,-500.0,0.00020882,2]
[368058334,1751011848091,-151.0,0.00020882,2]
[368058335,1751011848101,-500.0,0.00020882,2]
[368058336,1751011848110,-500.0,0.00020882,2]
[368058337,1751011848120,-151.0,0.00020882,2]
[368058338,1751011848130,-500.0,0.00020882,2]
[368058339,1751011848139,-151.0,0.00020882,2]
[368058340,1751011848149,-500.0,0.00020882,2]
[368058341,1751011848159,-500.0,0.00020882,2]
[368058342,1751011848169,-500.0,0.00020882,2]
[368058343,1751011848179,-500.0,0.00020882,2]
[368058344,1751011848188,-500.0,0.00020882,2]
[368058345,1751011848197,-500.0,0.00020882,2]
[368058346,1751011848206,-317.6401147,0.00020882,2]
[368058347,1751011848216,-500.0,0.00020882,2]
[368058348,1751011848225,-500.0,0.00020882,2]
[368058349,1751011848235,-436.67054575,0.00020882,2]
[368058350,1751011848244,-4635.56801658,0.00020882,2]
[368058351,1751011848255,-420.0,0.00020899,2]
[368058352,1751011848265,-240.0,0.00020899,2]
[368058353,1751011848275,-1680.0,0.00021,2]
[368058354,1751011848285,-172.0,0.00021061,2]
[368058355,1751011848294,-172.0,0.00021084,2]
[368058356,1751011848304,-151.0,0.00021095,2]
[368058357,1751011848314,-597.41412611,0.00021095,2]
[368058358,1751011848324,-479.26,0.00021095,2]
[368058359,1751011848334,-460.0,0.00021095,2]
[368058360,1751011848344,-599.06,0.00021095,2]
[368058361,1751011848354,-460.0,0.00021095,2]
[368058362,1751011848363,-723.17,0.00021095,2]
[368058363,1751011848373,-460.0,0.00021095,2]
[368058364,1751011848383,-460.0,0.00021095,2]
[368058365,1751011848392,-575.3,0.00021095,2]
[368058366,1751011848402,-460.0,0.00021095,2]
[368058367,1751011848412,-460.0,0.00021095,2]
[368058368,1751011848421,-1144.03,0.00021095,2]
[368058369,1751011848431,-532.29,0.00021095,2]
[368058370,1751011848440,-460.0,0.00021095,2]
[368058371,1751011848449,-2258.25,0.00021095,2]
[368058372,1751011848458,-460.0,0.00021095,2]
[368058373,1751011848469,-460.0,0.00021095,2]
[368058374,1751011848478,-460.0,0.00021095,2]
[368058375,1751011848488,-3678.83,0.00021095,2]
[368058376,1751011848497,-1363.59,0.00021095,2]
[368058377,1751011848507,-460.0,0.00021095,2]
[368058378,1751011848517,-460.0,0.00021095,2]
[368058379,1751011848526,-748.42,0.00021095,2]
[368058380,1751011848536,-2113.23,0.00021095,2]
[368058381,1751011848545,-460.0,0.00021095,2]
[368058382,1751011848555,-492.58,0.00021095,2]
[368058383,1751011848565,-551.78,0.00021095,2]
[368058384,1751011848575,-460.0,0.00021095,2]
[368058385,1751011848584,-1501.13,0.00021095,2]
[368058386,1751011848594,-492.21,0.00021095,2]
[368058387,1751011848603,-460.0,0.00021095,2]
[368058388,1751011848613,-869.54,0.00021095,2]
[368058389,1751011848623,-300.45356254,0.00021095,2]
[368058390,1751011848633,-460.0,0.00021095,2]
[368058391,1751011848643,-460.0,0.00021095,2]
[368058392,1751011848652,-1727.92,0.00021095,2]
[368058393,1751011848661,-312.9693823,0.00021095,2]
[368058394,1751011848670,-627.66,0.00021095,2]
[368058395,1751011848680,-3381.67,0.00021095,2]
[368058396,1751011848690,-3755.67,0.00021095,2]
[368058397,1751011848699,-460.0,0.00021095,2]
[368058398,1751011848709,-460.0,0.00021095,2]
[368058399,1751011848719,-953.84,0.00021095,2]
[368058400,1751011848729,-2771.44,0.00021095,2]
[368058401,1751011848741,-474.83927704,0.00021095,2]
[368058402,1751011848752,-460.0,0.00021095,2]
[368058403,1751011848763,-460.0,0.00021095,2]
[368058404,1751011848773,-706.35,0.00021095,2]
[368058405,1751011848783,-2317.21,0.00021095,2]
[368058406,1751011848793,-1188.88,0.00021095,2]
[368058407,1751011848803,-736.81,0.00021095,2]
[368058408,1751011848812,-460.0,0.00021095,2]
[368058409,1751011848822,-460.0,0.00021095,2]
[368058410,1751011848833,-460.0,0.00021095,2]
[368058411,1751011848843,-460.0,0.00021095,2]
[368058412,1751011848853,-467.38,0.00021095,2]
[368058413,1751011848863,-460.0,0.00021095,2]
[368058414,1751011848872,-1365.55,0.00021095,2]
[368058415,1751011848881,-676.57,0.00021095,2]
[368058416,1751011848891,-4598.21,0.00021095,2]
[368058417,1751011848901,-151.0,0.000211,3]
[368058418,1751011848911,-937.024,0.00021144,2]
[368058419,1751011848920,-177.889,0.00021144,2]
[368058420,1751011848932,-151.0,0.000212,3]
[368058421,1751011848942,-1910.25992877,0.00021238,2]
[368058422,1751011848952,-780.16948974,0.00021325,2]
[368058423,1751011848962,-479.26,0.00021369,2]
[368058424,1751011848971,-460.0,0.00021369,2]
[368058425,1751011848981,-599.06,0.00021369,2]
[368058426,1751011848990,-460.0,0.00021369,2]
[368058427,1751011849000,-723.17,0.00021369,2]
[368058428,1751011849009,-460.0,0.00021369,2]
[368058429,1751011849019,-460.0,0.00021369,2]
[368058430,1751011849028,-575.3,0.00021369,2]
[368058431,1751011849038,-460.0,0.00021369,2]
[368058432,1751011849047,-460.0,0.00021369,2]
[368058433,1751011849056,-1144.03,0.00021369,2]
[368058434,1751011849066,-532.29,0.00021369,2]
[368058435,1751011849075,-430.78595356,0.00021369,2]
[368058436,1751011849085,-2258.25,0.00021369,2]
[368058437,1751011849094,-460.0,0.00021369,2]
[368058438,1751011849104,-460.0,0.00021369,2]
[368058439,1751011849114,-460.0,0.00021369,2]
[368058440,1751011849123,-3678.83,0.00021369,2]
[368058441,1751011849133,-1363.59,0.00021369,2]
[368058442,1751011849143,-460.0,0.00021369,2]
[368058443,1751011849153,-460.0,0.00021369,2]
[368058444,1751011849162,-748.42,0.00021369,2]
[368058445,1751011849172,-2113.23,0.00021369,2]
[368058446,1751011849181,-460.0,0.00021369,2]
[368058447,1751011849190,-492.58,0.00021369,2]
[368058448,1751011849200,-551.78,0.00021369,2]
[368058449,1751011849209,-460.0,0.00021369,2]
[368058450,1751011849219,-1501.13,0.00021369,2]
[368058451,1751011849228,-492.21,0.00021369,2]
[368058452,1751011849238,-460.0,0.00021369,2]
[368058453,1751011849248,-869.54,0.00021369,2]
[368058454,1751011849258,-260.23572099,0.00021369,2]
[368058455,1751011849267,-460.0,0.00021369,2]
[368058456,1751011849276,-1727.92,0.00021369,2]
[368058457,1751011849286,-627.66,0.00021369,2]
[368058458,1751011849295,-3381.67,0.00021369,2]
[368058459,1751011849304,-984.90646314,0.00021369,2]
[368058460,1751011849440,-2770.76353686,0.00021369,2]
[368058461,1751011849450,-460.0,0.00021369,2]
[368058462,1751011849459,-460.0,0.00021369,2]
[368058463,1751011849468,-118.55969163,0.00021369,2]
[368058464,1751011849480,-455.18249544,0.00021369,2]
[368058465,1751011849820,-460.0,0.00019178,2]
[368058466,1751011849830,-460.0,0.00019452,2]
[368058467,1751011849840,-460.0,0.00019726,2]
[368058468,1751011849849,-460.0,0.0002,2]
[368058469,1751011849859,-380.09781293,0.00021369,2]
[368058470,1751011849869,-2771.44,0.00021369,2]
[368058471,1751011849879,-460.0,0.00021369,2]
[368058472,1751011849889,-460.0,0.00021369,2]
[368058473,1751011849899,-706.35,0.00021369,2]
[368058474,1751011849909,-2317.21,0.00021369,2]
[368058475,1751011849919,-1188.88,0.00021369,2]
[368058476,1751011849928,-736.81,0.00021369,2]
[368058477,1751011849938,-262.33535415,0.00021369,2]
[368058478,1751011850089,-460.0,0.00019178,2]
[368058479,1751011850100,-460.0,0.00019178,2]
[368058480,1751011850109,-460.0,0.00019178,2]
[368058481,1751011850119,-460.0,0.00019452,2]
[368058482,1751011850129,-159.93,0.00019726,2]
[368058483,1751011850139,-185.0,0.00020273,2]
[368058484,1751011850148,-197.66464585,0.00021369,2]
[368058485,1751011850159,-460.0,0.00021369,2]
[368058486,1751011850170,-460.0,0.00021369,2]
[368058487,1751011850180,-388.6148994,0.00021369,2]
[368058488,1751011850189,-467.38,0.00021369,2]
[368058489,1751011850199,-460.0,0.00021369,2]
[368058490,1751011850208,-1365.55,0.00021369,2]
[368058491,1751011850218,-676.57,0.00021369,2]
[368058492,1751011850227,-4598.21,0.00021369,2]
[368058493,1751011850236,-153.0,0.0002137,2]
[368058494,1751011850246,-153.0,0.0002137,2]
[368058495,1751011850256,-153.0,0.0002137,2]
[368058496,1751011850266,-151.0,0.000214,3]
[368058497,1751011850275,-151.0,0.000214,4]
[368058498,1751011850284,-5000.0,0.0002143,2]
[368058499,1751011850293,-15424.23820707,0.0002148,4]
[368058500,1751011850302,-151.0,0.000215,4]
[368058501,1751011850311,-76027.96408456,0.000215,3]
[368058502,1751011850323,-33311.03534142,0.000215,3]
[368058503,1751011850335,-6674.54157352,0.000215,3]
[368058504,1751011850351,-355.33534456,0.000209,4]
[368058505,1751011850363,-3664.749999,0.000209,4]
[368058506,1751011850376,-1318.399988,0.000209,4]
[368058507,1751011850387,-230.79325341,0.000209,4]
[368058508,1751011850397,-216459.30857651,0.000215,3]
[368058509,1751011850655,-460.0,0.00019178,2]
[368058510,1751011850664,-5569.27858492,0.00021072,4]
[368058511,1751011850674,-5569.27858492,0.00021245,4]
[368058512,1751011850683,-4047.21400753,0.00021417,5]
[368058513,1751011850695,-1265.42203369,0.00021417,5]
[368058514,1751011850706,-256.6425437,0.00021417,5]
[368058515,1751011850715,-1122.44791936,0.000215,3]
[368058516,1751011850727,-7139.56728169,0.000215,3]
[368058517,1751011850740,-669.12835284,0.000215,3]
[368058537,1751012098593,155.943859,0.0002254,30]
[368058538,1751012098896,155.943859,0.0002208,30]
[368058704,1751012150897,-920.0,0.00019078,2]
[368058783,1751012155769,155.943859,0.00023,30]
[368058793,1751012156066,155.943859,0.00023,30]
[368059018,1751012414400,-287.3330831,0.00019076,2]
[368059019,1751012414421,-635.6669169,0.00019078,2]
[368059058,1751012479069,-10020.3921528,0.00019,2]
[368059059,1751012479093,-55.6078472,0.00019078,2]
[368059345,1751012734508,-201.89906258,0.00019,2]
[368059346,1751012734530,-258.10093742,0.00019,2]
[368059347,1751012735111,-75.29594488,0.00019,2]
[368059348,1751012735132,-725.58961476,0.00019078,2]
[368059349,1751012735154,-239.22506275,0.00019175,2]
[368059370,1751012825147,-150.0,0.000189,2]
[368059371,1751012825168,-264.0,0.00019175,2]
[368059462,1751012857551,-162.76462887,0.00019,2]
[368059463,1751012857575,-696.77493725,0.00019175,2]
[368059464,1751012857595,-300.0,0.00019176,2]
[368059465,1751012857766,-300.0,0.00019176,2]
[368059466,1751012857787,-288.0,0.00019176,2]
[368059467,1751012857807,-300.0,0.00019176,2]
[368059468,1751012857829,-300.0,0.00019176,2]
[368059469,1751012857852,-500.0,0.00019177,2]
[368059470,1751012857878,-500.0,0.00019177,2]
[368059471,1751012857902,-379.07307733,0.00019177,2]
[368059472,1751012857924,-500.0,0.00019177,2]
[368059473,1751012857945,-500.0,0.00019177,2]
[368059474,1751012857967,-500.0,0.00019177,2]
[368059475,1751012857988,-500.0,0.00019177,2]
[368059476,1751012858009,-216.68966033,0.00019177,2]
[368059477,1751012858031,-500.0,0.00019177,2]
[368059478,1751012858055,-500.0,0.00019177,2]